[Event "*** Titled Tuesday Blitz"]
[Site "Chess.com"]
[Date "2021.03.30"]
[Round "6"]
[White "utsavp"]
[Black "LenkaPtacnikova"]
[Result "1-0"]
[WhiteElo "2300"]
[BlackElo "2165"]
[TimeControl "180+1"]
[EndTime "11:05:09 PDT"]
[Termination "utsavp won by checkmate"]

1. e4 {[%clk 0:01:19.9]} 1... c5 {[%clk 0:02:57.2]} 2. Nf3 {[%clk 0:01:18.9]}
2... e6 {[%clk 0:02:56.3]} 3. b3 {[%clk 0:01:18.4]} 3... d5 {[%clk 0:02:52.9]}
4. exd5 {[%clk 0:01:17.4]} 4... Qxd5 {[%clk 0:02:52.1]} 5. Bb5+ {[%clk
0:01:18.3]} 5... Nc6 {[%clk 0:02:48.8]} 6. O-O {[%clk 0:01:17.7]} 6... a6 {[%clk
0:02:46.7]} 7. Nc3 {[%clk 0:01:16.8]} 7... Qd6 {[%clk 0:02:45]} 8. Bxc6+ {[%clk
0:01:15.5]} 8... Qxc6 {[%clk 0:02:44.8]} 9. Bb2 {[%clk 0:01:15.2]} 9... Nf6
{[%clk 0:02:43.4]} 10. d4 {[%clk 0:01:13.7]} 10... cxd4 {[%clk 0:02:34.3]} 11.
Nxd4 {[%clk 0:01:13.2]} 11... Qc7 {[%clk 0:02:34.2]} 12. Re1 {[%clk 0:01:09.7]}
12... Bd6 {[%clk 0:02:29.4]} 13. h3 {[%clk 0:01:06.6]} 13... Bb4 {[%clk
0:02:21.2]} 14. Re3 {[%clk 0:01:04.9]} 14... O-O {[%clk 0:02:18.5]} 15. a3
{[%clk 0:00:58.9]} 15... Bc5 {[%clk 0:02:17.2]} 16. Rd3 {[%clk 0:00:55.6]} 16...
e5 {[%clk 0:02:14.6]} 17. Nde2 {[%clk 0:00:52.6]} 17... Bf5 {[%clk 0:02:05.4]}
18. Nd5 {[%clk 0:00:40.3]} 18... Nxd5 {[%clk 0:01:53]} 19. Rxd5 {[%clk
0:00:41.2]} 19... Rad8 {[%clk 0:01:30]} 20. Bxe5 {[%clk 0:00:34.9]} 20... Qc8
{[%clk 0:01:29.7]} 21. Ng3 {[%clk 0:00:30.3]} 21... Rxd5 {[%clk 0:01:17.1]} 22.
Qxd5 {[%clk 0:00:29.7]} 22... Rd8 {[%clk 0:01:08.8]} 23. Qc4 {[%clk 0:00:29.2]}
23... b5 {[%clk 0:01:04.5]} 24. Qf4 {[%clk 0:00:14.9]} 24... Bxc2 {[%clk
0:01:03.2]} 25. Rc1 {[%clk 0:00:14.2]} 25... Bxa3 {[%clk 0:01:02.5]} 26. Qg5
{[%clk 0:00:10.7]} 26... Bxc1 {[%clk 0:01:00.2]} 27. Qxg7# {[%clk 0:00:10.1]}
1-0

[Event "*** Titled Tuesday Blitz"]
[Site "Chess.com"]
[Date "2021.03.30"]
[Round "6"]
[White "Yaryi_sergey"]
[Black "vovachesss"]
[Result "1-0"]
[WhiteElo "2522"]
[BlackElo "2645"]
[TimeControl "180+1"]
[EndTime "11:05:12 PDT"]
[Termination "Yaryi_sergey won by resignation"]

1. Nf3 {[%clk 0:03:00.9]} 1... Nc6 {[%clk 0:02:57.3]} 2. d4 {[%clk 0:02:59.8]}
2... d6 {[%clk 0:02:57.9]} 3. d5 {[%clk 0:02:59.2]} 3... Ne5 {[%clk 0:02:58.1]}
4. Nxe5 {[%clk 0:02:58.5]} 4... dxe5 {[%clk 0:02:59]} 5. g3 {[%clk 0:02:58.2]}
5... Nf6 {[%clk 0:02:57.1]} 6. Bg2 {[%clk 0:02:57.9]} 6... e6 {[%clk 0:02:50.7]}
7. c4 {[%clk 0:02:56.8]} 7... exd5 {[%clk 0:02:50.3]} 8. cxd5 {[%clk 0:02:56.4]}
8... Bb4+ {[%clk 0:02:43.4]} 9. Nc3 {[%clk 0:02:53.3]} 9... O-O {[%clk
0:02:42.1]} 10. O-O {[%clk 0:02:52]} 10... Bxc3 {[%clk 0:02:39.9]} 11. bxc3
{[%clk 0:02:51]} 11... Bf5 {[%clk 0:02:40.8]} 12. Qb3 {[%clk 0:02:49.6]} 12...
Be4 {[%clk 0:02:33.9]} 13. Ba3 {[%clk 0:02:46.9]} 13... Re8 {[%clk 0:02:26.5]}
14. Rfd1 {[%clk 0:02:43.9]} 14... Bxg2 {[%clk 0:02:22.9]} 15. Kxg2 {[%clk
0:02:42.8]} 15... b6 {[%clk 0:02:23.8]} 16. c4 {[%clk 0:02:42.8]} 16... Qd7
{[%clk 0:02:17]} 17. c5 {[%clk 0:02:37]} 17... e4 {[%clk 0:02:06.7]} 18. c6
{[%clk 0:02:30.5]} 18... Qg4 {[%clk 0:02:04.7]} 19. Qe3 {[%clk 0:02:22.3]} 19...
Rad8 {[%clk 0:01:58.8]} 20. d6 {[%clk 0:02:19.8]} 20... cxd6 {[%clk 0:01:59.7]}
21. Rxd6 {[%clk 0:02:16.2]} 21... Nd5 {[%clk 0:01:37.8]} 22. Qd2 {[%clk
0:01:58]} 22... e3 {[%clk 0:01:26.8]} 23. Qxd5 {[%clk 0:01:53.5]} 23... Rxd6
{[%clk 0:01:09.3]} 24. Bxd6 {[%clk 0:01:51.8]} 24... exf2 {[%clk 0:01:05.3]} 25.
Rf1 {[%clk 0:01:45]} 25... h5 {[%clk 0:00:21.6]} 26. Rxf2 {[%clk 0:01:41.1]}
26... Rxe2 {[%clk 0:00:14.3]} 27. Qxf7+ {[%clk 0:01:35.7]} 27... Kh7 {[%clk
0:00:14.2]} 28. Qf3 {[%clk 0:01:32]} 28... Rxf2+ {[%clk 0:00:13.9]} 29. Qxf2
{[%clk 0:01:25]} 29... Qe4+ {[%clk 0:00:13.3]} 30. Kf1 {[%clk 0:01:23.6]} 30...
Qd3+ {[%clk 0:00:12.8]} 31. Qe2 {[%clk 0:01:23.9]} 31... Qxd6 {[%clk 0:00:12.7]}
32. Qc2+ {[%clk 0:01:23.6]} 32... g6 {[%clk 0:00:11]} 33. c7 {[%clk 0:01:24]}
33... Qf6+ {[%clk 0:00:11.2]} 34. Kg2 {[%clk 0:01:19]} 34... Qc6+ {[%clk
0:00:06.2]} 35. Qxc6 {[%clk 0:01:17.8]} 1-0

[Event "*** Titled Tuesday Blitz"]
[Site "Chess.com"]
[Date "2021.03.30"]
[Round "6"]
[White "WinnieTPooh"]
[Black "Fortitudine"]
[Result "0-1"]
[WhiteElo "1961"]
[BlackElo "2266"]
[TimeControl "180+1"]
[EndTime "11:05:13 PDT"]
[Termination "Fortitudine won on time"]

1. d4 {[%clk 0:03:00.9]} 1... Nf6 {[%clk 0:02:59]} 2. c4 {[%clk 0:03:00.9]} 2...
c5 {[%clk 0:02:55.4]} 3. d5 {[%clk 0:03:00.3]} 3... b5 {[%clk 0:02:55.4]} 4.
cxb5 {[%clk 0:03:01.2]} 4... a6 {[%clk 0:02:55.4]} 5. bxa6 {[%clk 0:03:00.6]}
5... g6 {[%clk 0:02:55.8]} 6. h3 {[%clk 0:02:28.6]} 6... Bg7 {[%clk 0:02:55.3]}
7. g4 {[%clk 0:02:28.8]} 7... O-O {[%clk 0:02:54]} 8. Bg2 {[%clk 0:02:28.9]}
8... d6 {[%clk 0:02:50]} 9. Nc3 {[%clk 0:02:23.5]} 9... Bxa6 {[%clk 0:02:45.4]}
10. Nf3 {[%clk 0:02:23.4]} 10... Nbd7 {[%clk 0:02:44.1]} 11. O-O {[%clk
0:02:23.2]} 11... Ne8 {[%clk 0:02:41.9]} 12. Re1 {[%clk 0:02:21.9]} 12... Nc7
{[%clk 0:02:37.2]} 13. Bd2 {[%clk 0:02:00.1]} 13... Rb8 {[%clk 0:02:25.1]} 14.
b3 {[%clk 0:01:51.2]} 14... Nb5 {[%clk 0:02:13.4]} 15. Rc1 {[%clk 0:01:25.1]}
15... Ne5 {[%clk 0:02:00.7]} 16. Nxe5 {[%clk 0:01:16.5]} 16... Bxe5 {[%clk
0:02:01.6]} 17. Nxb5 {[%clk 0:01:11.1]} 17... Bxb5 {[%clk 0:02:02.5]} 18. Bc3
{[%clk 0:01:11]} 18... Bxc3 {[%clk 0:02:02.8]} 19. Rxc3 {[%clk 0:01:11.9]} 19...
Qa5 {[%clk 0:02:02.7]} 20. Qc2 {[%clk 0:00:59.6]} 20... Ra8 {[%clk 0:01:57.8]}
21. a4 {[%clk 0:00:55.3]} 21... Bd7 {[%clk 0:01:57.6]} 22. e4 {[%clk 0:00:44.1]}
22... Rab8 {[%clk 0:01:57.5]} 23. Bf1 {[%clk 0:00:39.4]} 23... f6 {[%clk
0:01:47.6]} 24. Bc4 {[%clk 0:00:39]} 24... Kg7 {[%clk 0:01:47.6]} 25. f4 {[%clk
0:00:37.6]} 25... Rh8 {[%clk 0:01:45.5]} 26. e5 {[%clk 0:00:36.8]} 26... Qd8
{[%clk 0:01:40.3]} 27. Rce3 {[%clk 0:00:29.9]} 27... Re8 {[%clk 0:01:39.2]} 28.
Qc3 {[%clk 0:00:20]} 28... h6 {[%clk 0:01:11.4]} 29. exf6+ {[%clk 0:00:08.9]}
29... exf6 {[%clk 0:01:12.3]} 30. Rxe8 {[%clk 0:00:03.9]} 30... Bxe8 {[%clk
0:01:13.2]} 31. g5 {[%clk 0:00:03.8]} 31... Bf7 {[%clk 0:01:13.1]} 0-1

[Event "*** Titled Tuesday Blitz"]
[Site "Chess.com"]
[Date "2021.03.30"]
[Round "6"]
[White "adriangschnitzer"]
[Black "KNCP_719"]
[Result "0-1"]
[WhiteElo "2491"]
[BlackElo "2633"]
[TimeControl "180+1"]
[EndTime "11:05:14 PDT"]
[Termination "KNCP_719 won by resignation"]

1. e4 {[%clk 0:03:00.9]} 1... Nf6 {[%clk 0:02:59.6]} 2. e5 {[%clk 0:03:00.7]}
2... Nd5 {[%clk 0:03:00.1]} 3. c4 {[%clk 0:03:00.9]} 3... Nb6 {[%clk 0:03:00.5]}
4. d4 {[%clk 0:03:00.4]} 4... d6 {[%clk 0:03:00.9]} 5. exd6 {[%clk 0:03:01.3]}
5... cxd6 {[%clk 0:03:01.8]} 6. Nc3 {[%clk 0:03:01.4]} 6... g6 {[%clk
0:03:02.2]} 7. Be3 {[%clk 0:03:01.9]} 7... Bg7 {[%clk 0:03:02.8]} 8. Rc1 {[%clk
0:03:02.4]} 8... O-O {[%clk 0:02:55.4]} 9. b3 {[%clk 0:03:00.4]} 9... e5 {[%clk
0:02:55.3]} 10. Nf3 {[%clk 0:02:58.6]} 10... Nc6 {[%clk 0:02:50.8]} 11. dxe5
{[%clk 0:02:53]} 11... dxe5 {[%clk 0:02:49.5]} 12. Qxd8 {[%clk 0:02:45.8]} 12...
Rxd8 {[%clk 0:02:50.4]} 13. c5 {[%clk 0:02:43.6]} 13... Nd7 {[%clk 0:02:50.5]}
14. Bc4 {[%clk 0:02:43.1]} 14... Nf8 {[%clk 0:02:50.5]} 15. O-O {[%clk
0:02:41.4]} 15... h6 {[%clk 0:02:50.1]} 16. Rfd1 {[%clk 0:02:41]} 16... Be6
{[%clk 0:02:50.6]} 17. Nd5 {[%clk 0:02:37.4]} 17... Rd7 {[%clk 0:02:34.8]} 18.
Rd2 {[%clk 0:02:18.1]} 18... Rad8 {[%clk 0:02:31.6]} 19. Rcd1 {[%clk 0:02:17.9]}
19... Nd4 {[%clk 0:02:24.3]} 20. Nb4 {[%clk 0:00:57.7]} 20... Bxc4 {[%clk
0:02:04.6]} 21. bxc4 {[%clk 0:00:58.6]} 21... Nfe6 {[%clk 0:01:51.2]} 22. Nd5
{[%clk 0:00:55.5]} 22... Kh7 {[%clk 0:01:02.5]} 23. Bxd4 {[%clk 0:00:52.3]}
23... exd4 {[%clk 0:00:56.4]} 24. Kf1 {[%clk 0:00:29.7]} 24... Rc8 {[%clk
0:00:55.6]} 25. Rb1 {[%clk 0:00:17.9]} 25... Rxc5 {[%clk 0:00:54.7]} 26. Rdb2
{[%clk 0:00:17.8]} 26... b6 {[%clk 0:00:52.5]} 27. Rc1 {[%clk 0:00:14.3]} 27...
Rdxd5 {[%clk 0:00:51.6]} 0-1

[Event "*** Titled Tuesday Blitz"]
[Site "Chess.com"]
[Date "2021.03.30"]
[Round "6"]
[White "kekic76"]
[Black "reniite"]
[Result "0-1"]
[WhiteElo "2372"]
[BlackElo "2026"]
[TimeControl "180+1"]
[EndTime "11:05:16 PDT"]
[Termination "reniite won by checkmate"]

1. e4 {[%clk 0:03:00.9]} 1... e5 {[%clk 0:02:45.7]} 2. Nf3 {[%clk 0:02:59.9]}
2... Nc6 {[%clk 0:02:41.9]} 3. Bb5 {[%clk 0:02:59.5]} 3... a6 {[%clk 0:02:41.2]}
4. Ba4 {[%clk 0:02:59.7]} 4... Nf6 {[%clk 0:02:41.7]} 5. O-O {[%clk 0:02:59.5]}
5... Be7 {[%clk 0:02:38.9]} 6. Re1 {[%clk 0:02:59.2]} 6... b5 {[%clk 0:02:38.1]}
7. Bb3 {[%clk 0:02:59.7]} 7... O-O {[%clk 0:02:37.9]} 8. a4 {[%clk 0:02:58.6]}
8... Rb8 {[%clk 0:02:25.9]} 9. axb5 {[%clk 0:02:55.1]} 9... axb5 {[%clk
0:02:25.3]} 10. Nc3 {[%clk 0:02:55.3]} 10... d6 {[%clk 0:02:20.8]} 11. d3 {[%clk
0:02:55.5]} 11... Bg4 {[%clk 0:02:18.8]} 12. h3 {[%clk 0:02:54.5]} 12... Bh5
{[%clk 0:02:13.4]} 13. g4 {[%clk 0:02:54.1]} 13... Nxg4 {[%clk 0:02:03.8]} 14.
hxg4 {[%clk 0:02:55]} 14... Bxg4 {[%clk 0:02:03.8]} 15. Be3 {[%clk 0:02:51.9]}
15... Kh8 {[%clk 0:01:51.4]} 16. Ra6 {[%clk 0:02:32.5]} 16... f5 {[%clk
0:01:22.5]} 17. exf5 {[%clk 0:01:48.5]} 17... Rxf5 {[%clk 0:01:17.9]} 18. Rxc6
{[%clk 0:00:51.7]} 18... Bxf3 {[%clk 0:01:16.3]} 19. Qxf3 {[%clk 0:00:48.4]}
19... Rxf3 {[%clk 0:01:17.2]} 20. Nd5 {[%clk 0:00:47.5]} 20... Qd7 {[%clk
0:00:46.9]} 21. Rxc7 {[%clk 0:00:46.1]} 21... Qg4+ {[%clk 0:00:45.7]} 22. Kf1
{[%clk 0:00:46.2]} 22... Rh3 {[%clk 0:00:42.1]} 23. f3 {[%clk 0:00:19]} 23...
Qxf3+ {[%clk 0:00:39.2]} 24. Bf2 {[%clk 0:00:18.7]} 24... Rh1# {[%clk
0:00:37.8]} 0-1

[Event "*** Titled Tuesday Blitz"]
[Site "Chess.com"]
[Date "2021.03.30"]
[Round "6"]
[White "FGHSMN"]
[Black "ChessFunMaker"]
[Result "1-0"]
[WhiteElo "2639"]
[BlackElo "2235"]
[TimeControl "180+1"]
[EndTime "11:05:19 PDT"]
[Termination "FGHSMN won on time"]

1. e4 {[%clk 0:03:00.9]} 1... c5 {[%clk 0:02:59.3]} 2. Nf3 {[%clk 0:02:58.4]}
2... d6 {[%clk 0:02:59.6]} 3. d4 {[%clk 0:02:58.9]} 3... cxd4 {[%clk 0:03:00.5]}
4. Nxd4 {[%clk 0:02:59.7]} 4... Nf6 {[%clk 0:03:01.1]} 5. Nc3 {[%clk 0:02:59]}
5... a6 {[%clk 0:03:01.7]} 6. h3 {[%clk 0:02:58.7]} 6... e6 {[%clk 0:03:01.5]}
7. g4 {[%clk 0:02:57.4]} 7... d5 {[%clk 0:03:01.9]} 8. Nde2 {[%clk 0:02:55.9]}
8... Nc6 {[%clk 0:02:56.9]} 9. Bg2 {[%clk 0:02:52.4]} 9... Nxe4 {[%clk
0:02:39.8]} 10. Nxe4 {[%clk 0:02:49.9]} 10... dxe4 {[%clk 0:02:39.8]} 11. Qxd8+
{[%clk 0:02:50.4]} 11... Nxd8 {[%clk 0:02:36.2]} 12. Bxe4 {[%clk 0:02:51.3]}
12... e5 {[%clk 0:02:20.8]} 13. Be3 {[%clk 0:02:49]} 13... Be6 {[%clk
0:02:11.7]} 14. O-O-O {[%clk 0:02:45.1]} 14... Nc6 {[%clk 0:02:10.4]} 15. f4
{[%clk 0:02:43.9]} 15... Be7 {[%clk 0:01:48.8]} 16. f5 {[%clk 0:02:32.9]} 16...
Bc4 {[%clk 0:01:48.1]} 17. Nc3 {[%clk 0:02:31.8]} 17... Kf8 {[%clk 0:01:41.9]}
18. b3 {[%clk 0:02:24.9]} 18... Ba3+ {[%clk 0:01:27.7]} 19. Kb1 {[%clk
0:02:23.8]} 19... Bb4 {[%clk 0:01:28]} 20. Kb2 {[%clk 0:02:20.3]} 20... Na5
{[%clk 0:01:06.7]} 21. Bb6 {[%clk 0:01:56.7]} 21... Bb5 {[%clk 0:00:48.5]} 22.
Nd5 {[%clk 0:01:40.5]} 22... Bc6 {[%clk 0:00:34.3]} 23. Nxb4 {[%clk 0:01:32.1]}
23... Bxe4 {[%clk 0:00:27.6]} 24. Rhe1 {[%clk 0:01:30.1]} 24... Bf3 {[%clk
0:00:17.8]} 25. Bxa5 {[%clk 0:01:28.7]} 25... Bxd1 {[%clk 0:00:17.3]} 26. Rxd1
{[%clk 0:01:29.6]} 26... Ke7 {[%clk 0:00:17.7]} 27. Nd5+ {[%clk 0:01:29]} 27...
Kf8 {[%clk 0:00:11]} 28. Bb4+ {[%clk 0:01:28.2]} 28... Kg8 {[%clk 0:00:10.9]}
29. Ne7+ {[%clk 0:01:26.7]} 29... Kf8 {[%clk 0:00:11]} 30. Ng6+ {[%clk
0:01:17.5]} 30... Kg8 {[%clk 0:00:10.9]} 31. Nxh8 {[%clk 0:01:18.1]} 31... Kxh8
{[%clk 0:00:11.8]} 32. Rd7 {[%clk 0:01:18.1]} 32... Re8 {[%clk 0:00:03.3]} 33.
Rxb7 {[%clk 0:01:16.9]} 33... Kg8 {[%clk 0:00:01.8]} 34. Re7 {[%clk 0:01:16.6]}
1-0

[Event "*** Titled Tuesday Blitz"]
[Site "Chess.com"]
[Date "2021.03.30"]
[Round "6"]
[White "MalyDominator"]
[Black "tsaruk_maks"]
[Result "0-1"]
[WhiteElo "2487"]
[BlackElo "2621"]
[TimeControl "180+1"]
[EndTime "11:05:25 PDT"]
[Termination "tsaruk_maks won by resignation"]

1. e4 {[%clk 0:03:00.9]} 1... e5 {[%clk 0:02:57.5]} 2. Nf3 {[%clk 0:03:00.7]}
2... Nc6 {[%clk 0:02:57.9]} 3. Bb5 {[%clk 0:02:59.4]} 3... a6 {[%clk 0:02:57.8]}
4. Ba4 {[%clk 0:02:59.8]} 4... Nf6 {[%clk 0:02:58.1]} 5. O-O {[%clk 0:03:00]}
5... b5 {[%clk 0:02:54.5]} 6. Bb3 {[%clk 0:02:59]} 6... Nxe4 {[%clk 0:02:55.2]}
7. d4 {[%clk 0:02:56.1]} 7... d5 {[%clk 0:02:55.7]} 8. dxe5 {[%clk 0:02:55.8]}
8... Be6 {[%clk 0:02:56.3]} 9. Qe2 {[%clk 0:02:55.5]} 9... Be7 {[%clk
0:02:53.6]} 10. Rd1 {[%clk 0:02:55.5]} 10... O-O {[%clk 0:02:49.9]} 11. c4
{[%clk 0:02:53.6]} 11... bxc4 {[%clk 0:01:14.6]} 12. Bxc4 {[%clk 0:02:51.7]}
12... Nc5 {[%clk 0:01:12.7]} 13. Nc3 {[%clk 0:02:43.5]} 13... d4 {[%clk
0:01:12.5]} 14. Bxe6 {[%clk 0:02:34.9]} 14... Nxe6 {[%clk 0:01:13.4]} 15. Ne4
{[%clk 0:02:32]} 15... Qd5 {[%clk 0:01:12]} 16. Nc3 {[%clk 0:02:16.7]} 16... Qa5
{[%clk 0:01:12]} 17. Ne4 {[%clk 0:02:14.2]} 17... Nxe5 {[%clk 0:01:10.4]} 18.
Bd2 {[%clk 0:02:13]} 18... Qb5 {[%clk 0:01:01.6]} 19. Qxb5 {[%clk 0:01:53.4]}
19... Nxf3+ {[%clk 0:01:01.5]} 20. gxf3 {[%clk 0:01:54.3]} 20... axb5 {[%clk
0:01:02.1]} 21. a3 {[%clk 0:01:49.8]} 21... c5 {[%clk 0:00:54.1]} 22. Rac1
{[%clk 0:01:49.2]} 22... c4 {[%clk 0:00:47.1]} 23. f4 {[%clk 0:01:46.8]} 23...
f5 {[%clk 0:00:45.8]} 24. Ng3 {[%clk 0:01:39.4]} 24... d3 {[%clk 0:00:44.2]} 25.
Be3 {[%clk 0:01:36.7]} 25... Bf6 {[%clk 0:00:36.4]} 26. Rd2 {[%clk 0:01:35.2]}
26... g6 {[%clk 0:00:34.2]} 27. f3 {[%clk 0:01:35]} 27... Nd4 {[%clk 0:00:29.4]}
28. Rf2 {[%clk 0:01:22.9]} 28... Nc2 {[%clk 0:00:27.8]} 29. Bc5 {[%clk 0:01:17]}
29... Rfc8 {[%clk 0:00:27.1]} 30. Bb6 {[%clk 0:01:17.3]} 30... Bxb2 {[%clk
0:00:26.1]} 31. Rb1 {[%clk 0:01:14.9]} 31... Bd4 {[%clk 0:00:20.5]} 32. Bxd4
{[%clk 0:01:11.8]} 32... Nxd4 {[%clk 0:00:21.4]} 33. Nf1 {[%clk 0:01:10.5]}
33... Rxa3 {[%clk 0:00:19.7]} 34. Ne3 {[%clk 0:01:10.4]} 34... c3 {[%clk
0:00:19.6]} 35. Nd5 {[%clk 0:01:09.2]} 35... c2 {[%clk 0:00:19.3]} 36. Re1
{[%clk 0:01:05.2]} 36... c1=Q {[%clk 0:00:16.5]} 37. Ne7+ {[%clk 0:01:02.3]}
37... Kf7 {[%clk 0:00:16.2]} 0-1

[Event "*** Titled Tuesday Blitz"]
[Site "Chess.com"]
[Date "2021.03.30"]
[Round "6"]
[White "VD_coach"]
[Black "katchesskat"]
[Result "1-0"]
[WhiteElo "2484"]
[BlackElo "2314"]
[TimeControl "180+1"]
[EndTime "11:05:28 PDT"]
[Termination "VD_coach won on time"]

1. Nf3 {[%clk 0:03:00]} 1... c5 {[%clk 0:03:00.9]} 2. g3 {[%clk 0:02:59.9]} 2...
e6 {[%clk 0:02:58.4]} 3. Bg2 {[%clk 0:03:00.2]} 3... Be7 {[%clk 0:02:58.7]} 4.
O-O {[%clk 0:03:00.2]} 4... h5 {[%clk 0:02:58.6]} 5. h4 {[%clk 0:02:59.8]} 5...
Nf6 {[%clk 0:02:58.5]} 6. c4 {[%clk 0:02:56.2]} 6... Qc7 {[%clk 0:02:57.8]} 7.
Nc3 {[%clk 0:02:55.6]} 7... a6 {[%clk 0:02:57.4]} 8. d4 {[%clk 0:02:53.5]} 8...
cxd4 {[%clk 0:02:58.3]} 9. Qxd4 {[%clk 0:02:48.5]} 9... Bc5 {[%clk 0:02:56.9]}
10. Qd3 {[%clk 0:02:44.9]} 10... Qxg3 {[%clk 0:02:51.6]} 11. Na4 {[%clk
0:02:38.7]} 11... Ba7 {[%clk 0:02:44.8]} 12. c5 {[%clk 0:02:37.3]} 12... Qc7
{[%clk 0:02:42.9]} 13. Be3 {[%clk 0:02:26]} 13... Ng4 {[%clk 0:02:34.2]} 14. Nb6
{[%clk 0:02:22.5]} 14... Nxe3 {[%clk 0:01:49.5]} 15. Nxa8 {[%clk 0:02:16.7]}
15... Qa5 {[%clk 0:01:03.5]} 16. Qxe3 {[%clk 0:02:03.3]} 16... Bxc5 {[%clk
0:01:03.3]} 17. Qf4 {[%clk 0:02:02.8]} 17... O-O {[%clk 0:00:40.2]} 18. Qxb8
{[%clk 0:01:59.5]} 18... Qb4 {[%clk 0:00:17]} 19. a3 {[%clk 0:01:53.5]} 19...
Qxb2 {[%clk 0:00:11.9]} 20. Rac1 {[%clk 0:01:50.2]} 20... d6 {[%clk 0:00:10.7]}
21. Rxc5 {[%clk 0:01:42.9]} 21... dxc5 {[%clk 0:00:11.6]} 22. Qd6 {[%clk
0:01:41.3]} 22... Qxe2 {[%clk 0:00:08.3]} 23. Nc7 {[%clk 0:01:40.4]} 23... b5
{[%clk 0:00:05.7]} 24. Qxc5 {[%clk 0:01:39.4]} 24... Bb7 {[%clk 0:00:05.4]} 25.
Qe3 {[%clk 0:01:32.4]} 25... Bxf3 {[%clk 0:00:04.3]} 26. Bxf3 {[%clk 0:01:31.3]}
26... Qc4 {[%clk 0:00:04.2]} 27. Nxa6 {[%clk 0:01:30.2]} 27... Qxh4 {[%clk
0:00:03.8]} 28. Kg2 {[%clk 0:01:29.9]} 28... Rd8 {[%clk 0:00:03.8]} 29. Rh1
{[%clk 0:01:29.6]} 29... Qf6 {[%clk 0:00:03.9]} 30. Rxh5 {[%clk 0:01:29.2]}
30... g6 {[%clk 0:00:03.9]} 31. Rxb5 {[%clk 0:01:28]} 31... Kg7 {[%clk
0:00:02.6]} 32. Qe5 {[%clk 0:01:27.4]} 32... Rd3 {[%clk 0:00:01.6]} 33. Qxf6+
{[%clk 0:01:27.3]} 33... Kxf6 {[%clk 0:00:02.5]} 34. a4 {[%clk 0:01:27.5]} 34...
Ra3 {[%clk 0:00:02.4]} 35. a5 {[%clk 0:01:27.6]} 35... Ke7 {[%clk 0:00:01.7]}
36. Nc7 {[%clk 0:01:27.3]} 36... f5 {[%clk 0:00:01.5]} 37. a6 {[%clk 0:01:26.8]}
37... Kd7 {[%clk 0:00:01.9]} 38. Rb7 {[%clk 0:01:26.5]} 38... Kc8 {[%clk
0:00:01.3]} 39. a7 {[%clk 0:01:25.4]} 1-0

[Event "*** Titled Tuesday Blitz"]
[Site "Chess.com"]
[Date "2021.03.30"]
[Round "6"]
[White "lukazz029"]
[Black "Eloist"]
[Result "0-1"]
[WhiteElo "2160"]
[BlackElo "2340"]
[TimeControl "180+1"]
[EndTime "11:05:30 PDT"]
[Termination "Eloist won by resignation"]

1. e4 {[%clk 0:03:00.9]} 1... e6 {[%clk 0:02:58.8]} 2. d4 {[%clk 0:02:57.9]}
2... d5 {[%clk 0:02:58.8]} 3. Nc3 {[%clk 0:02:54.3]} 3... Nf6 {[%clk 0:02:58.1]}
4. e5 {[%clk 0:02:54.7]} 4... Nfd7 {[%clk 0:02:57.9]} 5. f4 {[%clk 0:02:55]}
5... c5 {[%clk 0:02:57.9]} 6. Nf3 {[%clk 0:02:55.4]} 6... Nc6 {[%clk 0:02:58.1]}
7. Be3 {[%clk 0:02:54.5]} 7... a6 {[%clk 0:02:58.2]} 8. Qd2 {[%clk 0:02:54.6]}
8... b5 {[%clk 0:02:58.3]} 9. Ne2 {[%clk 0:02:50.6]} 9... b4 {[%clk 0:02:52.3]}
10. Ng3 {[%clk 0:02:44.2]} 10... Qb6 {[%clk 0:02:50.5]} 11. c3 {[%clk 0:02:42]}
11... a5 {[%clk 0:02:48]} 12. dxc5 {[%clk 0:02:39.7]} 12... Bxc5 {[%clk
0:02:47.1]} 13. Bxc5 {[%clk 0:02:39.9]} 13... Nxc5 {[%clk 0:02:44.2]} 14. Bd3
{[%clk 0:02:37.3]} 14... O-O {[%clk 0:02:41.5]} 15. Qe2 {[%clk 0:02:29.4]} 15...
Nxd3+ {[%clk 0:02:40.6]} 16. Qxd3 {[%clk 0:02:30.3]} 16... Ba6 {[%clk
0:02:40.6]} 17. Qd2 {[%clk 0:02:28.8]} 17... bxc3 {[%clk 0:02:39.1]} 18. bxc3
{[%clk 0:02:29.2]} 18... Rab8 {[%clk 0:02:36.8]} 19. Nd4 {[%clk 0:02:23.5]}
19... Nxd4 {[%clk 0:02:34.5]} 20. cxd4 {[%clk 0:02:24.4]} 20... Rfc8 {[%clk
0:02:30.9]} 21. Kf2 {[%clk 0:02:13.5]} 21... Qb2 {[%clk 0:02:20.5]} 22. Qxb2
{[%clk 0:02:08.6]} 22... Rxb2+ {[%clk 0:02:21.4]} 23. Kf3 {[%clk 0:02:04]} 23...
Rc3+ {[%clk 0:02:19.9]} 24. Kg4 {[%clk 0:02:00.5]} 24... Bd3 {[%clk 0:02:04.3]}
25. Rhg1 {[%clk 0:01:52.5]} 25... h6 {[%clk 0:01:51.4]} 26. a4 {[%clk
0:01:31.5]} 26... Rcc2 {[%clk 0:01:34.4]} 27. Rac1 {[%clk 0:01:22.6]} 27... Rxg2
{[%clk 0:01:26.3]} 28. Rxg2 {[%clk 0:01:20.2]} 28... Rxg2 {[%clk 0:01:26]} 29.
Rc8+ {[%clk 0:01:20.6]} 29... Kh7 {[%clk 0:01:25.3]} 30. Rc7 {[%clk 0:01:17.3]}
30... Kg6 {[%clk 0:01:14.3]} 31. Kh3 {[%clk 0:01:13.1]} 31... Ra2 {[%clk
0:01:12.3]} 32. Ra7 {[%clk 0:01:04.6]} 32... Rxa4 {[%clk 0:01:10.5]} 33. Kg4
{[%clk 0:01:05.2]} 33... Ra2 {[%clk 0:00:59.3]} 34. h4 {[%clk 0:01:04.6]} 34...
h5+ {[%clk 0:00:58.8]} 35. Kf3 {[%clk 0:00:56.2]} 35... a4 {[%clk 0:00:54.6]}
36. f5+ {[%clk 0:00:39.2]} 36... Bxf5 {[%clk 0:00:51]} 37. Nf1 {[%clk
0:00:34.3]} 37... Be4+ {[%clk 0:00:49.1]} 38. Kf4 {[%clk 0:00:33.6]} 38... Rf2+
{[%clk 0:00:47.7]} 0-1